fUST/lending_fUST_20241231
["ID","MTS","AMOUNT","RATE_DAILY","PERIOD"]
[347287678,1735660252514,-500.0,0.00019452,3]
[347287679,1735660252523,-500.0,0.00019452,3]
[347287680,1735660252532,-500.0,0.00019452,3]
[347287681,1735660252542,-500.0,0.00019452,3]
[347287682,1735660252551,-500.0,0.00019452,2]
[347287683,1735660252560,-184.3050583,0.00019452,3]
[347287684,1735660252570,-500.0,0.00019452,3]
[347287685,1735660252580,-500.0,0.00019452,3]
[347287686,1735660252590,-500.0,0.00019452,3]
[347287687,1735660252600,-184.90928908,0.00019452,3]
[347287688,1735660252610,-500.0,0.00019452,3]
[347287689,1735660252620,-500.0,0.00019452,3]
[347287690,1735660252630,-500.0,0.00019452,3]
[347287691,1735660252641,-500.0,0.00019452,3]
[347287692,1735660252650,-500.0,0.00019452,3]
[347287693,1735660252660,-500.0,0.00019452,3]
[347287694,1735660252669,-247.73256656,0.00019452,3]
[347287695,1735660252678,-500.0,0.00019452,3]
[347287696,1735660252688,-500.0,0.00019452,3]
[347287697,1735660252697,-500.0,0.00019452,3]
[347287698,1735660252706,-501.93490632,0.00019452,3]
[347287699,1735660252716,-500.0,0.00019452,3]
[347287700,1735660252725,-500.0,0.00019452,3]
[347287701,1735660252734,-559.91,0.00019452,3]
[347287702,1735660252743,-500.0,0.00019452,3]
[347287703,1735660252752,-500.0,0.00019452,3]
[347287704,1735660252762,-500.0,0.00019452,3]
[347287705,1735660252771,-500.27382946,0.00019452,3]
[347287706,1735660252780,-500.0,0.00019452,3]
[347287707,1735660252789,-326.1400669,0.00019452,3]
[347287708,1735660252799,-500.0,0.00019452,3]
[347287709,1735660252808,-1199.49,0.00019452,3]
[347287710,1735660252890,-500.0,0.00019452,3]
[347287711,1735660252908,-500.0,0.00019452,3]
[347287712,1735660252918,-500.0,0.00019452,3]
[347287713,1735660252927,-500.0,0.00019452,3]
[347287714,1735660252937,-500.0,0.00019452,3]
[347287715,1735660252946,-500.0,0.00019452,3]
[347287716,1735660252955,-500.0,0.00019452,3]
[347287717,1735660252965,-500.0,0.00019452,3]
[347287718,1735660252974,-500.0,0.00019452,3]
[347287719,1735660252985,-500.0,0.00019452,3]
[347287720,1735660252996,-500.0,0.00019452,3]
[347287721,1735660253006,-500.0,0.00019452,3]
[347287722,1735660253015,-500.0,0.00019452,3]
[347287723,1735660253025,-500.0,0.00019452,3]
[347287724,1735660253035,-500.0,0.00019452,3]
[347287725,1735660253044,-503.29604193,0.00019452,3]
[347287726,1735660253054,-500.0,0.00019452,3]
[347287727,1735660253065,-500.0,0.00019452,3]
[347287728,1735660253074,-500.0,0.00019452,3]
[347287729,1735660253083,-500.0,0.00019452,3]
[347287730,1735660253093,-500.0,0.00019452,3]
[347287731,1735660253102,-500.0,0.00019452,3]
[347287732,1735660253111,-500.0,0.00019452,3]
[347287733,1735660253120,-633.62,0.00019452,3]
[347287734,1735660253130,-1061.86,0.00019452,3]
[347287735,1735660253139,-500.0,0.00019452,3]
[347287736,1735660253148,-500.0,0.00019452,3]
[347287737,1735660253157,-500.0,0.00019452,3]
[347287738,1735660253166,-249.74909326,0.00019452,3]
[347287739,1735660253176,-500.0,0.00019452,3]
[347287740,1735660253186,-510.1563106,0.00019452,3]
[347287741,1735660253195,-1512.78,0.00019452,3]
[347287742,1735660253205,-500.0,0.00019452,3]
[347287743,1735660253214,-500.0,0.00019452,3]
[347287744,1735660253223,-500.0,0.00019452,3]
[347287745,1735660253233,-500.0,0.00019452,3]
[347287746,1735660253242,-500.0,0.00019452,3]
[347287747,1735660253252,-500.0,0.00019452,3]
[347287748,1735660253262,-545.10946359,0.00019452,3]
[347287749,1735660253271,-500.0,0.00019452,3]
[347287750,1735660253281,-500.0,0.00019452,3]
[347287751,1735660253292,-500.0,0.00019452,3]
[347287752,1735660253302,-505.91477024,0.00019452,3]
[347287753,1735660253311,-446.47850036,0.00019452,3]
[347287754,1735660253320,-500.0,0.00019452,3]
[347287755,1735660253330,-500.0,0.00019452,3]
[347287756,1735660253340,-500.0,0.00019452,3]
[347287757,1735660253349,-500.0,0.00019452,3]
[347287758,1735660253358,-500.0,0.00019452,3]
[347287759,1735660253368,-723.06,0.00019452,3]
[347287760,1735660253377,-500.0,0.00019452,3]
[347287761,1735660253387,-504.16428992,0.00019452,3]
[347287762,1735660253397,-503.23303042,0.00019452,3]
[347287763,1735660253406,-501.49118778,0.00019452,3]
[347287764,1735660253415,-500.0,0.00019452,3]
[347287765,1735660253424,-500.0,0.00019452,3]
[347287766,1735660253434,-500.0,0.00019452,3]
[347287767,1735660253443,-500.0,0.00019452,3]
[347287768,1735660253452,-500.0,0.00019452,3]
[347287769,1735660253462,-624.68,0.00019452,3]
[347287770,1735660253471,-500.0,0.00019452,3]
[347287771,1735660253481,-500.0,0.00019452,3]
[347287772,1735660253490,-500.0,0.00019452,3]
[347287773,1735660253500,-500.0,0.00019452,3]
[347287774,1735660253509,-500.0,0.00019452,3]
[347287775,1735660253518,-500.0,0.00019452,3]
[347287776,1735660253528,-1354.41,0.00019452,3]
[347287777,1735660253537,-500.0,0.00019452,3]
[347287778,1735660253546,-500.0,0.00019452,3]
[347287779,1735660253556,-500.0,0.00019452,3]
[347287780,1735660253565,-500.0,0.00019452,3]
[347287781,1735660253575,-534.69,0.00019452,3]
[347287782,1735660253585,-500.0,0.00019452,3]
[347287783,1735660253595,-500.0,0.00019452,3]
[347287784,1735660253604,-500.0,0.00019452,3]
[347287785,1735660253615,-500.0,0.00019452,3]
[347287786,1735660253624,-500.0,0.00019452,3]
[347287787,1735660253636,-500.0,0.00019452,3]
[347287788,1735660253646,-950.79,0.00019452,3]
[347287789,1735660253655,-500.0,0.00019452,3]
[347287790,1735660253664,-500.0,0.00019452,3]
[347287791,1735660253674,-436.28760728,0.00019452,3]
[347287792,1735660253683,-500.0,0.00019452,3]
[347287793,1735660253693,-500.0,0.00019452,3]
[347287794,1735660253702,-500.0,0.00019452,3]
[347287795,1735660253712,-500.0,0.00019452,3]
[347287796,1735660253721,-500.0,0.00019452,3]
[347287797,1735660253731,-492.02524396,0.00019452,3]
[347287798,1735660253740,-500.0,0.00019452,3]
[347287799,1735660253750,-543.3,0.00019452,3]
[347287800,1735660253759,-345.91557391,0.00019452,3]
[347287801,1735660253769,-500.0,0.00019452,3]
[347287802,1735660253779,-500.0,0.00019452,3]
[347287803,1735660253788,-500.0,0.00019452,3]
[347287804,1735660253797,-500.0,0.00019452,3]
[347287805,1735660253806,-500.0,0.00019452,3]
[347287806,1735660253815,-207.93481199,0.00019452,3]
[347287807,1735660253824,-500.0,0.00019452,3]
[347287808,1735660253832,-721.83,0.00019452,3]
[347287809,1735660253843,-500.0,0.00019452,3]
[347287810,1735660253852,-3940.0,0.00019452,3]
[347287811,1735660253861,-500.0,0.00019452,3]
[347287812,1735660253871,-564.14692351,0.00019452,3]
[347287813,1735660253881,-500.0,0.00019452,3]
[347287814,1735660253891,-500.90779258,0.00019452,3]
[347287815,1735660253900,-503.366253,0.00019452,3]
[347287816,1735660253910,-367.818737,0.00019452,3]
[347287817,1735660253920,-500.0,0.00019452,3]
[347287818,1735660253929,-1349.49,0.00019452,3]
[347287819,1735660253938,-500.0,0.00019452,3]
[347287820,1735660253947,-500.25019082,0.00019452,3]
[347287821,1735660253956,-500.0,0.00019452,3]
[347287822,1735660253966,-500.0,0.00019452,3]
[347287823,1735660253975,-500.0,0.00019452,3]
[347287824,1735660253988,-500.0,0.00019452,3]
[347287825,1735660253998,-617.49823112,0.00019452,3]
[347287826,1735660254007,-500.0,0.00019452,3]
[347287827,1735660254017,-2562.65,0.00019452,3]
[347287828,1735660254028,-500.0,0.00019452,3]
[347287829,1735660254037,-500.0,0.00019452,3]
[347287830,1735660254047,-500.0,0.00019452,3]
[347287831,1735660254058,-500.0,0.00019452,3]
[347287832,1735660254067,-500.0,0.00019452,3]
[347287833,1735660254076,-500.0,0.00019452,3]
[347287834,1735660254086,-1941.04,0.00019452,3]
[347287835,1735660254095,-500.0,0.00019452,3]
[347287836,1735660254105,-500.0,0.00019452,3]
[347287837,1735660254115,-500.0,0.00019452,3]
[347287838,1735660254125,-537.25,0.00019452,3]
[347287839,1735660254135,-500.0,0.00019452,3]
[347287840,1735660254219,-500.0,0.00019452,3]
[347287841,1735660254229,-500.0,0.00019452,3]
[347287842,1735660254238,-500.0,0.00019452,3]
[347287843,1735660254248,-500.0,0.00019452,3]
[347287844,1735660254257,-600.19,0.00019452,3]
[347287845,1735660254267,-500.0,0.00019452,3]
[347287846,1735660254276,-1120.49,0.00019452,3]
[347287847,1735660254286,-500.0,0.00019452,3]
[347287848,1735660254296,-500.0,0.00019452,3]
[347287849,1735660254305,-1826.55,0.00019452,3]
[347287850,1735660254314,-531.95,0.00019452,3]
[347287851,1735660254324,-500.0,0.00019452,3]
[347287852,1735660254334,-500.0,0.00019452,3]
[347287853,1735660254343,-500.0,0.00019452,3]
[347287854,1735660254353,-500.0,0.00019452,3]
[347287855,1735660254363,-500.0,0.00019452,3]
[347287856,1735660254373,-500.0,0.00019452,3]
[347287857,1735660254383,-500.0,0.00019452,3]
[347287858,1735660254393,-2218.38,0.00019452,3]
[347287859,1735660254402,-500.0,0.00019452,3]
[347287860,1735660254411,-500.0,0.00019452,3]
[347287861,1735660254421,-296.7367504,0.00019452,3]
[347287862,1735660254430,-500.0,0.00019452,3]
[347287863,1735660254439,-500.0,0.00019452,3]
[347287864,1735660254449,-500.0,0.00019452,3]
[347287865,1735660254458,-811.43,0.00019452,3]
[347287866,1735660254468,-500.0,0.00019452,3]
[347287867,1735660254477,-500.0,0.00019452,3]
[347287868,1735660254487,-500.0,0.00019452,3]
[347287869,1735660254496,-500.0,0.00019452,3]
[347287870,1735660254505,-1242.55,0.00019452,3]
[347287871,1735660254514,-509.4326958,0.00019452,3]
[347287872,1735660254525,-500.0,0.00019452,3]
[347287873,1735660254534,-500.0,0.00019452,3]
[347287874,1735660254544,-500.0,0.00019452,3]
[347287875,1735660254553,-500.0,0.00019452,3]
[347287876,1735660254562,-500.0,0.00019452,3]
[347287877,1735660254572,-790.18,0.00019452,3]
[347287878,1735660254581,-500.0,0.00019452,3]
[347287879,1735660254590,-500.0,0.00019452,3]
[347287880,1735660254600,-500.0,0.00019452,3]
[347287881,1735660254609,-1172.4,0.00019452,3]
[347287882,1735660254619,-500.0,0.00019452,3]
[347287883,1735660254630,-500.0,0.00019452,2]
[347287884,1735660254640,-470.85419916,0.00019452,3]
[347287885,1735660254649,-500.0,0.00019452,3]
[347287886,1735660254658,-500.0,0.00019452,3]
[347287887,1735660254667,-557.5061285,0.00019452,3]
[347287888,1735660254677,-500.0,0.00019452,3]
[347287889,1735660254686,-1050.61,0.00019452,3]
[347287890,1735660254695,-500.0,0.00019452,3]
[347287891,1735660254705,-4345.25,0.00019452,3]
[347287892,1735660254715,-500.0,0.00019452,3]
[347287893,1735660254725,-500.0,0.00019452,3]
[347287894,1735660254734,-500.0,0.00019452,3]
[347287895,1735660254743,-500.0,0.00019452,3]
[347287896,1735660254752,-500.0,0.00019452,3]
[347287897,1735660254761,-500.0,0.00019452,3]
[347287898,1735660254771,-500.0,0.00019452,3]
[347287899,1735660254780,-507.59,0.00019452,3]
[347287900,1735660254789,-500.0,0.00019452,3]
[347287901,1735660254798,-1284.55,0.00019452,3]
[347287902,1735660254807,-500.0,0.00019452,3]
[347287903,1735660254816,-500.0,0.00019452,3]
[347287904,1735660254825,-1879.54,0.00019452,3]
[347287905,1735660254834,-821.53,0.00019452,3]
[347287906,1735660254843,-500.0,0.00019452,3]
[347287907,1735660254853,-500.0,0.00019452,3]
[347287908,1735660254863,-500.0,0.00019452,3]
[347287909,1735660254872,-500.0,0.00019452,3]
[347287910,1735660254881,-1176.9,0.00019452,3]
[347287911,1735660254890,-500.0,0.00019452,3]
[347287912,1735660254899,-505.50937111,0.00019452,3]
[347287913,1735660254908,-500.0,0.00019452,3]
[347287914,1735660254917,-500.0,0.00019452,3]
[347287915,1735660254927,-500.0,0.00019452,3]
[347287916,1735660254935,-500.0,0.00019452,3]
[347287917,1735660254945,-500.0,0.00019452,3]
[347287918,1735660254954,-500.0,0.00019452,3]
[347287919,1735660254963,-8162.72,0.00019452,3]
[347287920,1735660254972,-500.0,0.00019452,3]
[347287921,1735660254982,-500.0,0.00019452,3]
[347287922,1735660254996,-500.0,0.00019452,3]
[347287923,1735660255005,-500.0,0.00019452,3]
[347287924,1735660255015,-500.0,0.00019452,3]
[347287925,1735660255024,-500.0,0.00019452,3]
[347287926,1735660255034,-1128.39,0.00019452,3]
[347287927,1735660255043,-500.0,0.00019452,3]
[347287928,1735660255054,-692.65,0.00019452,3]
[347287929,1735660255065,-2059.07,0.00019452,3]
[347287930,1735660255074,-500.45638209,0.00019452,3]
[347287931,1735660255083,-500.0,0.00019452,3]
[347287932,1735660255092,-500.0,0.00019452,3]
[347287933,1735660255101,-500.0,0.00019452,3]
[347287934,1735660255110,-571.63,0.00019452,3]
[347287935,1735660255120,-929.29,0.00019452,3]
[347287936,1735660255130,-500.0,0.00019452,3]
[347287937,1735660255140,-500.0,0.00019452,3]
[347287938,1735660255149,-500.0,0.00019452,3]
[347287939,1735660255159,-500.0,0.00019452,3]
[347287940,1735660255168,-500.0,0.00019452,3]
[347287941,1735660255178,-500.0,0.00019452,3]
[347287942,1735660255188,-2519.84,0.00019452,3]
[347287943,1735660255197,-500.0,0.00019452,3]
[347287944,1735660255207,-500.0,0.00019452,3]
[347287945,1735660255216,-500.0,0.00019452,3]
[347287946,1735660255228,-913.25,0.00019452,3]
[347287947,1735660255237,-1045.1,0.00019452,3]
[347287948,1735660255247,-979.78,0.00019452,3]
[347287949,1735660255257,-500.0,0.00019452,3]
[347287950,1735660255266,-500.0,0.00019452,3]
[347287951,1735660255275,-699.87,0.00019452,3]
[347287952,1735660255284,-500.0,0.00019452,3]
[347287953,1735660255294,-500.0,0.00019452,3]
[347287954,1735660255303,-500.0,0.00019452,3]
[347287955,1735660255312,-500.0,0.00019452,3]
[347287956,1735660255322,-500.0,0.00019452,3]
[347287957,1735660255331,-500.0,0.00019452,3]
[347287958,1735660255341,-2522.28,0.00019452,3]
[347287959,1735660255351,-500.0,0.00019452,3]
[347287960,1735660255432,-500.0,0.00019452,3]
[347287961,1735660255442,-500.0,0.00019452,3]
[347287962,1735660255452,-500.0,0.00019452,3]
[347287963,1735660255462,-500.0,0.00019452,3]
[347287964,1735660255471,-500.0,0.00019452,3]
[347287965,1735660255481,-500.0,0.00019452,3]
[347287966,1735660255490,-506.72,0.00019452,3]
[347287967,1735660255500,-2127.13,0.00019452,3]
[347287968,1735660255509,-500.0,0.00019452,3]
[347287969,1735660255519,-500.0,0.00019452,3]
[347287970,1735660255528,-565.86,0.00019452,3]
[347287971,1735660255538,-500.0,0.00019452,3]
[347287972,1735660255547,-61924.25,0.00019452,3]
[347287973,1735660255557,-500.0,0.00019452,3]
[347287974,1735660255566,-500.0,0.00019452,3]
[347287975,1735660255575,-1205.54,0.00019452,3]
[347287976,1735660255584,-500.0,0.00019452,3]
[347287977,1735660255593,-500.0,0.00019452,3]
[347287978,1735660255603,-500.0,0.00019452,3]
[347287979,1735660255612,-505.70035105,0.00019452,3]
[347287980,1735660255622,-1469.99,0.00019452,3]
[347287981,1735660255631,-1260.5,0.00019452,3]
[347287982,1735660255640,-757.89,0.00019452,3]
[347287983,1735660255649,-500.0,0.00019452,3]
[347287984,1735660255658,-504.33840837,0.00019452,3]
[347287985,1735660255668,-500.0,0.00019452,3]
[347287986,1735660255677,-1486.8,0.00019452,3]
[347287987,1735660255687,-500.0,0.00019452,3]
[347287988,1735660255696,-500.0,0.00019452,3]
[347287989,1735660255705,-500.0,0.00019452,3]
[347287990,1735660255715,-1196.79,0.00019452,3]
[347287991,1735660255724,-500.0,0.00019452,3]
[347287992,1735660255734,-7785.69,0.00019452,3]
[347287993,1735660255744,-500.0,0.00019452,3]
[347287994,1735660255753,-1083.01,0.00019452,3]
[347287995,1735660255762,-510.75747027,0.00019452,3]
[347287996,1735660255772,-500.0,0.00019452,2]
[347287997,1735660255781,-335.77129011,0.00019452,3]
[347287998,1735660255791,-1435.65,0.00019452,3]
[347287999,1735660255800,-500.0,0.00019452,3]
[347288000,1735660255810,-500.0,0.00019452,3]
[347288001,1735660255820,-503.2038418,0.00019452,3]
[347288002,1735660255829,-500.0,0.00019452,3]
[347288003,1735660255838,-500.0,0.00019452,3]
[347288004,1735660255847,-558.24380342,0.00019452,3]
[347288005,1735660255857,-500.0,0.00019452,3]
[347288006,1735660255866,-507.31617317,0.00019452,3]
[347288007,1735660255876,-1716.68,0.00019452,3]
[347288008,1735660255886,-570.7,0.00019452,3]
[347288009,1735660255895,-500.0,0.00019452,3]
[347288010,1735660255905,-500.0,0.00019452,3]
[347288011,1735660255915,-872.43,0.00019452,3]
[347288012,1735660255924,-500.0,0.00019452,3]
[347288013,1735660255934,-500.0,0.00019452,3]
[347288014,1735660255943,-568.02,0.00019452,3]
[347288015,1735660255956,-500.0,0.00019452,3]
[347288016,1735660255975,-500.0,0.00019452,3]
[347288017,1735660255994,-500.0,0.00019452,3]
[347288018,1735660256014,-500.0,0.00019452,3]
[347288019,1735660256032,-500.0,0.00019452,3]
[347288020,1735660256049,-462.84658063,0.00019452,3]
[347288021,1735660256067,-500.0,0.00019452,3]
[347288022,1735660256081,-500.0,0.00019452,3]
[347288023,1735660256098,-500.0,0.00019452,3]
[347288024,1735660256117,-500.0,0.00019452,3]
[347288025,1735660256137,-500.0,0.00019452,3]
[347288026,1735660256150,-500.0,0.00019452,3]
[347288027,1735660256169,-500.0,0.00019452,3]
[347288028,1735660256183,-500.0,0.00019452,3]
[347288029,1735660256198,-500.0,0.00019452,3]
[347288030,1735660256211,-13245.78,0.00019452,3]
[347288031,1735660256226,-961.56,0.00019452,3]
[347288032,1735660256240,-500.0,0.00019452,3]
[347288033,1735660256254,-610.54,0.00019452,3]
[347288034,1735660256268,-500.0,0.00019452,2]
[347288035,1735660256282,-11531.21,0.00019452,3]
[347288036,1735660256297,-500.0,0.00019452,3]
[347288037,1735660256311,-502.5609407,0.00019452,3]
[347288038,1735660256326,-502.80457149,0.00019452,3]
[347288039,1735660256341,-500.0,0.00019452,3]
[347288040,1735660256356,-5286.11,0.00019452,3]
[347288041,1735660256371,-500.0,0.00019452,3]
[347288042,1735660256386,-500.0,0.00019452,3]
[347288043,1735660256400,-500.0,0.00019452,3]
[347288044,1735660256415,-500.0,0.00019452,3]
[347288045,1735660256429,-500.0,0.00019452,3]
[347288046,1735660256444,-500.0,0.00019452,3]
[347288047,1735660256458,-4022.65,0.00019452,3]
[347288048,1735660256473,-500.0,0.00019452,3]
[347288049,1735660256487,-1018.11,0.00019452,3]
[347288050,1735660256501,-500.0,0.00019452,3]
[347288051,1735660256516,-500.0,0.00019452,3]
[347288052,1735660256531,-500.0,0.00019452,3]
[347288053,1735660256548,-500.0,0.00019452,3]
[347288054,1735660256563,-500.0,0.00019452,3]
[347288055,1735660256578,-592.91,0.00019452,3]
[347288056,1735660256594,-500.0,0.00019452,3]
[347288057,1735660256609,-500.0,0.00019452,3]
[347288058,1735660256624,-500.0,0.00019452,3]
[347288059,1735660256638,-500.69801897,0.00019452,3]
[347288060,1735660256653,-500.0,0.00019452,3]
[347288061,1735660256667,-500.0,0.00019452,3]
[347288062,1735660256676,-1598.2,0.00019452,3]
[347288063,1735660256686,-500.0,0.00019452,3]
[347288064,1735660256696,-502.85800823,0.00019452,3]
[347288065,1735660256705,-500.0,0.00019452,3]
[347288066,1735660256715,-1037.22,0.00019452,3]
[347288067,1735660256724,-500.0,0.00019452,3]
[347288068,1735660256734,-500.0,0.00019452,3]
[347288069,1735660256743,-1288.34,0.00019452,3]
[347288070,1735660256914,-500.0,0.00019452,3]
[347288071,1735660256925,-500.0,0.00019452,3]
[347288072,1735660256936,-500.0,0.00019452,3]
[347288073,1735660256946,-500.55395662,0.00019452,3]
[347288074,1735660256955,-457.78753774,0.00019452,3]
[347288075,1735660257302,-368.78771321,0.00017,2]
[347288076,1735660257311,-500.0,0.00019178,2]
[347288077,1735660257320,-42.21246226,0.00019452,3]
[347288078,1735660257330,-500.0,0.00019452,3]
[347288079,1735660257339,-300.94136832,0.00019452,3]
[347288080,1735660257350,-384.47543081,0.00019452,3]
[347288081,1735660257362,-1211.36320087,0.00019452,3]
[347288082,1735660257371,-500.0,0.00019452,3]
[347288083,1735660257381,-500.59286402,0.00019452,3]
[347288084,1735660257392,-150.0,0.00019452,2]
[347288085,1735660257401,-500.0,0.00019473,2]
[347288086,1735660257411,-152.04094297,0.00019473,2]
[347288087,1735660257420,-500.43794056,0.00019473,2]
[347288088,1735660257430,-500.0,0.00019473,2]
[347288089,1735660257439,-200.84080193,0.00019473,2]
[347288090,1735660257448,-500.0,0.00019473,2]
[347288091,1735660257459,-500.0,0.00019473,2]
[347288092,1735660257468,-500.0,0.00019473,2]
[347288093,1735660257478,-1023.44694853,0.00019499,2]
[347288094,1735660257487,-1008.04,0.00019508,2]
[347288095,1735660257497,-4845.5220237,0.00019689,2]
[347288096,1735660257507,-462.18069311,0.00019693,2]
[347288097,1735660257518,-501.01795844,0.00019721,2]
[347288098,1735660257528,-1000.0,0.00019721,2]
[347288099,1735660257538,-1000.0,0.00019721,2]
[347288100,1735660257548,-1000.0,0.00019721,2]
[347288101,1735660257558,-1000.0,0.00019721,2]
[347288102,1735660257568,-1001.50112158,0.00019721,2]
[347288103,1735660257579,-318.02979482,0.00019721,2]
[347288104,1735660257593,-500.35136097,0.00019721,2]
[347288105,1735660257603,-1000.0,0.00019721,2]
[347288106,1735660257613,-151.0,0.00019726,2]
[347288107,1735660257623,-500.0,0.00019726,3]
[347288108,1735660257635,-500.0,0.00019726,3]
[347288109,1735660257645,-500.0,0.00019726,3]
[347288110,1735660257655,-177.956831,0.00019726,2]
[347288111,1735660257665,-500.0,0.00019726,3]
[347288112,1735660257674,-288.86776285,0.00019726,3]
[347288113,1735660257684,-500.0,0.00019726,3]
[347288114,1735660257694,-500.0,0.00019726,3]
[347288115,1735660257703,-500.0,0.00019726,3]
[347288116,1735660257713,-151.0,0.00019726,2]
[347288117,1735660257722,-500.0,0.00019726,3]
[347288118,1735660257731,-500.0,0.00019726,3]
[347288119,1735660257742,-500.0,0.00019726,3]
[347288120,1735660257752,-500.91182221,0.00019726,3]
[347288121,1735660257762,-500.0,0.00019726,3]
[347288122,1735660257773,-500.0,0.00019726,3]
[347288123,1735660257783,-735.62,0.00019726,3]
[347288124,1735660257793,-500.0,0.00019726,3]
[347288125,1735660257803,-500.0,0.00019726,3]
[347288126,1735660257813,-500.0,0.00019726,3]
[347288127,1735660257822,-500.0,0.00019726,3]
[347288128,1735660257832,-501.01487314,0.00019726,3]
[347288129,1735660257841,-500.0,0.00019726,3]
[347288130,1735660257851,-500.0,0.00019726,3]
[347288131,1735660257861,-500.0,0.00019726,3]
[347288132,1735660257870,-500.0,0.00019726,3]
[347288133,1735660257880,-612.24,0.00019726,3]
[347288134,1735660257892,-500.0,0.00019726,3]
[347288135,1735660257902,-500.0,0.00019726,3]
[347288136,1735660257912,-500.0,0.00019726,3]
[347288137,1735660257922,-500.0,0.00019726,3]
[347288138,1735660257932,-500.0,0.00019726,3]
[347288139,1735660257942,-500.0,0.00019726,3]
[347288140,1735660257953,-500.0,0.00019726,3]
[347288141,1735660257962,-249.62118168,0.00019726,3]
[347288142,1735660257972,-500.0,0.00019726,3]
[347288143,1735660257982,-500.0,0.00019726,3]
[347288144,1735660257999,-500.0,0.00019726,3]
[347288145,1735660258017,-500.0,0.00019726,3]
[347288146,1735660258027,-500.48872189,0.00019726,3]
[347288147,1735660258037,-500.0,0.00019726,3]
[347288148,1735660258047,-500.0,0.00019726,3]
[347288149,1735660258057,-500.0,0.00019726,3]
[347288150,1735660258067,-500.0,0.00019726,3]
[347288151,1735660258078,-500.0,0.00019726,3]
[347288152,1735660258088,-503.36147409,0.00019726,3]
[347288153,1735660258100,-500.0,0.00019726,3]
[347288154,1735660258112,-500.0,0.00019726,3]
[347288155,1735660258126,-500.0,0.00019726,3]
[347288156,1735660258137,-500.0,0.00019726,3]
[347288157,1735660258146,-500.0,0.00019726,3]
[347288158,1735660258155,-500.0,0.00019726,3]
[347288159,1735660258165,-500.0,0.00019726,3]
[347288160,1735660258174,-500.0,0.00019726,3]
[347288161,1735660258183,-500.0,0.00019726,3]
[347288162,1735660258193,-505.84697742,0.00019726,3]
[347288163,1735660258202,-500.0,0.00019726,3]
[347288164,1735660258211,-500.0,0.00019726,3]
[347288165,1735660258221,-213.29116017,0.00019726,3]
[347288166,1735660258230,-500.0,0.00019726,3]
[347288167,1735660258239,-500.0,0.00019726,3]
[347288168,1735660258248,-500.0,0.00019726,3]
[347288169,1735660258258,-500.0,0.00019726,3]
[347288170,1735660258267,-500.0,0.00019726,3]
[347288171,1735660258276,-503.76828307,0.00019726,3]
[347288172,1735660258285,-500.0,0.00019726,3]
[347288173,1735660258294,-500.0,0.00019726,3]
[347288174,1735660258303,-500.0,0.00019726,3]
[347288175,1735660258313,-500.0,0.00019726,3]
[347288176,1735660258322,-500.0,0.00019726,3]
[347288177,1735660258332,-500.0,0.00019726,3]